[Event "Titled Tuesday Blitz March 22 Late 2022"]
[White "Sliwicki, Damian"]
[Black "Halkias, Stelios"]
[WhiteFideId "1127128"]
[BlackFideId "4201809"]
[WhiteElo "2067"]
[BlackElo "2453"]
[Result "1-0"]
[Round "02"]
[TimeControl "180+1"]
[Date "2022.03.22"]
[WhiteClock "0:00:10"]
[BlackClock "0:00:30"]

1. e4 {[%clk 0:03:00]}  e5 {[%clk 0:02:59]} 2. Nf3 {[%clk 0:02:59]}  Nc6 {[%clk 0:03:00]} 3. d4 {[%clk 0:02:58]}  exd4 {[%clk 0:02:59]} 4. Bc4 {[%clk 0:02:58]}  Nf6 {[%clk 0:02:59]} 5. O-O {[%clk 0:02:57]}  Nxe4 {[%clk 0:02:59]} 6. Nc3 {[%clk 0:02:28]}  Nxc3 {[%clk 0:02:58]} 7. bxc3 {[%clk 0:02:28]}  d5 {[%clk 0:02:58]} 8. Bb5 {[%clk 0:02:28]}  Be7 {[%clk 0:02:56]} 9. Ne5 {[%clk 0:02:21]}  Bd7 {[%clk 0:02:49]} 10. Bxc6 {[%clk 0:02:11]}  bxc6 {[%clk 0:02:46]} 11. Re1 {[%clk 0:02:10]}  O-O {[%clk 0:02:46]} 12. cxd4 {[%clk 0:02:10]}  Bd6 {[%clk 0:02:46]} 13. Qf3 {[%clk 0:02:07]}  f6 {[%clk 0:02:39]} 14. Nd3 {[%clk 0:02:03]}  Re8 {[%clk 0:02:39]} 15. Bf4 {[%clk 0:02:02]}  Rxe1+ {[%clk 0:02:36]} 16. Rxe1 {[%clk 0:02:03]}  Qf8 {[%clk 0:02:37]} 17. h3 {[%clk 0:02:00]}  Re8 {[%clk 0:02:35]} 18. Rb1 {[%clk 0:01:57]}  Rb8 {[%clk 0:02:26]} 19. Re1 {[%clk 0:01:49]}  h6 {[%clk 0:02:11]} 20. Qg3 {[%clk 0:01:41]}  Kh8 {[%clk 0:02:09]} 21. Qf3 {[%clk 0:01:05]}  Qf7 {[%clk 0:02:05]} 22. Qg3 {[%clk 0:01:03]}  Qf8 {[%clk 0:02:01]} 23. Qf3 {[%clk 0:01:04]}  a5 {[%clk 0:01:59]} 24. a4 {[%clk 0:01:02]}  Re8 {[%clk 0:01:55]} 25. Rb1 {[%clk 0:01:01]}  Re4 {[%clk 0:01:55]} 26. c3 {[%clk 0:00:45]}  Qe8 {[%clk 0:01:53]} 27. Qg3 {[%clk 0:00:37]}  Rxf4 {[%clk 0:01:39]} 28. Nxf4 {[%clk 0:00:38]}  Qe4 {[%clk 0:01:39]} 29. Qg6 {[%clk 0:00:27]}  Qxg6 {[%clk 0:01:24]} 30. Nxg6+ {[%clk 0:00:27]}  Kg8 {[%clk 0:01:25]} 31. Rb8+ {[%clk 0:00:20]}  Kf7 {[%clk 0:01:25]} 32. Nh8+ {[%clk 0:00:19]}  Ke7 {[%clk 0:01:24]} 33. Ra8 {[%clk 0:00:19]}  c5 {[%clk 0:01:20]} 34. Rxa5 {[%clk 0:00:17]}  c4 {[%clk 0:01:13]} 35. Ra7 {[%clk 0:00:14]}  Bf5 {[%clk 0:01:04]} 36. a5 {[%clk 0:00:15]}  Kd7 {[%clk 0:01:04]} 37. a6 {[%clk 0:00:13]}  Kc6 {[%clk 0:01:03]} 38. Nf7 {[%clk 0:00:13]}  Bf4 {[%clk 0:00:54]} 39. Ra8 {[%clk 0:00:13]}  Kb6 {[%clk 0:00:50]} 40. Nd8 {[%clk 0:00:12]}  Bd2 {[%clk 0:00:44]} 41. a7 {[%clk 0:00:06]}  Bxc3 {[%clk 0:00:41]} 42. Nc6 {[%clk 0:00:06]}  Kxc6 {[%clk 0:00:25]} 43. Rb8 {[%clk 0:00:07]}  Bxd4 {[%clk 0:00:26]} 44. a8=Q+ {[%clk 0:00:07]}  Kd6 {[%clk 0:00:27]} 45. Qa6+ {[%clk 0:00:07]}  Bb6 {[%clk 0:00:26]} 46. Rxb6+ {[%clk 0:00:07]}  cxb6 {[%clk 0:00:27]} 47. Qxb6+ {[%clk 0:00:08]}  Ke5 {[%clk 0:00:27]} 48. Qe3+ {[%clk 0:00:08]}  Kd6 {[%clk 0:00:27]} 49. Qd4 {[%clk 0:00:08]}  Be6 {[%clk 0:00:27]} 50. f4 {[%clk 0:00:09]}  Kc6 {[%clk 0:00:27]} 51. Kf2 {[%clk 0:00:08]}  Bf5 {[%clk 0:00:28]} 52. Ke3 {[%clk 0:00:08]}  Be4 {[%clk 0:00:28]} 53. g3 {[%clk 0:00:08]}  Kb5 {[%clk 0:00:29]} 54. Kd2 {[%clk 0:00:08]}  Kb4 {[%clk 0:00:29]} 55. Qb2+ {[%clk 0:00:08]}  Kc5 {[%clk 0:00:29]} 56. Qa3+ {[%clk 0:00:08]}  Kb5 {[%clk 0:00:28]} 57. Kc3 {[%clk 0:00:09]}  f5 {[%clk 0:00:27]} 58. Qb4+ {[%clk 0:00:08]}  Kc6 {[%clk 0:00:28]} 59. Kd4 {[%clk 0:00:09]}  Kd7 {[%clk 0:00:28]} 60. Qb7+ {[%clk 0:00:09]}  Kd6 {[%clk 0:00:28]} 61. Qxg7 {[%clk 0:00:09]}  Kc6 {[%clk 0:00:28]} 62. Qxh6+ {[%clk 0:00:09]}  Kb5 {[%clk 0:00:28]} 63. Qd6 {[%clk 0:00:10]}  Ka4 {[%clk 0:00:28]} 64. Kc3 {[%clk 0:00:10]}  Kb5 {[%clk 0:00:28]} 65. Qb4+ {[%clk 0:00:10]}  Kc6 {[%clk 0:00:28]} 66. Kd4 {[%clk 0:00:10]}  Kd7 {[%clk 0:00:29]} 67. h4 {[%clk 0:00:10]}  Ke6 {[%clk 0:00:29]} 68. h5 {[%clk 0:00:11]}  Kf7 {[%clk 0:00:29]} 69. Qd6 {[%clk 0:00:10]}  Kg7 {[%clk 0:00:30]} 70. Qg6+ {[%clk 0:00:09]}  Kf8 {[%clk 0:00:30]} 71. h6 {[%clk 0:00:10]}  Ke7 {[%clk 0:00:30]} 72. h7 {[%clk 0:00:10]}  Kd7 {[%clk 0:00:30]} 73. h8=Q {[%clk 0:00:10]} 1-0


[Site "https://www.chess.com"]

[Event "Titled Tuesday Blitz March 22 Late 2022"]
[White "Svane, Rasmus"]
[Black "Rastbod, Ali"]
[WhiteFideId "4657101"]
[BlackFideId "12567477"]
[WhiteElo "2645"]
[BlackElo "2200"]
[Result "1-0"]
[Round "02"]
[TimeControl "180+1"]
[Date "2022.03.22"]
[WhiteClock "0:01:11"]
[BlackClock "0:00:04"]

1. Nf3 {[%clk 0:02:56]}  d5 {[%clk 0:02:02]} 2. g3 {[%clk 0:02:54]}  Nd7 {[%clk 0:02:02]} 3. d4 {[%clk 0:02:54]}  Nb6 {[%clk 0:02:01]} 4. Nc3 {[%clk 0:02:55]}  Bf5 {[%clk 0:01:59]} 5. a4 {[%clk 0:02:55]}  a5 {[%clk 0:01:59]} 6. Bg2 {[%clk 0:02:50]}  e6 {[%clk 0:01:57]} 7. Nh4 {[%clk 0:02:50]}  Bg4 {[%clk 0:01:52]} 8. h3 {[%clk 0:02:51]}  Bh5 {[%clk 0:01:52]} 9. O-O {[%clk 0:02:49]}  Be7 {[%clk 0:01:51]} 10. Nf3 {[%clk 0:02:50]}  Nf6 {[%clk 0:01:50]} 11. Ne5 {[%clk 0:02:50]}  O-O {[%clk 0:01:49]} 12. g4 {[%clk 0:02:51]}  Bg6 {[%clk 0:01:49]} 13. Nxg6 {[%clk 0:02:51]}  hxg6 {[%clk 0:01:50]} 14. e4 {[%clk 0:02:52]}  Re8 {[%clk 0:01:38]} 15. Qd3 {[%clk 0:02:50]}  c5 {[%clk 0:01:38]} 16. dxc5 {[%clk 0:02:46]}  Bxc5 {[%clk 0:01:38]} 17. exd5 {[%clk 0:02:44]}  Nbxd5 {[%clk 0:01:39]} 18. Nxd5 {[%clk 0:02:43]}  Nxd5 {[%clk 0:01:38]} 19. c3 {[%clk 0:02:33]}  Qc7 {[%clk 0:01:33]} 20. Qf3 {[%clk 0:02:28]}  Rad8 {[%clk 0:01:27]} 21. Bd2 {[%clk 0:02:24]}  b6 {[%clk 0:01:14]} 22. Rad1 {[%clk 0:02:19]}  Rd6 {[%clk 0:01:07]} 23. h4 {[%clk 0:02:14]}  Red8 {[%clk 0:01:06]} 24. h5 {[%clk 0:02:11]}  gxh5 {[%clk 0:01:04]} 25. gxh5 {[%clk 0:02:12]}  f5 {[%clk 0:00:45]} 26. h6 {[%clk 0:02:11]}  gxh6 {[%clk 0:00:45]} 27. Bxh6 {[%clk 0:02:09]}  Qh7 {[%clk 0:00:42]} 28. Bg5 {[%clk 0:02:07]}  R8d7 {[%clk 0:00:40]} 29. Rfe1 {[%clk 0:02:07]}  Kf7 {[%clk 0:00:40]} 30. c4 {[%clk 0:01:43]}  Nb4 {[%clk 0:00:39]} 31. Rxd6 {[%clk 0:01:42]}  Rxd6 {[%clk 0:00:40]} 32. Qb7+ {[%clk 0:01:23]}  Kg6 {[%clk 0:00:40]} 33. Be7 {[%clk 0:01:23]}  Nc6 {[%clk 0:00:10]} 34. Bxc6 {[%clk 0:01:13]}  Rxc6 {[%clk 0:00:04]} 35. Qxc6 {[%clk 0:01:11]} 1-0


[Site "https://www.chess.com"]

[Event "Titled Tuesday Blitz March 22 Late 2022"]
[White "Svicevic, Rastko"]
[Black "Gokerkan, Cem Kaan"]
[WhiteFideId "916315"]
[BlackFideId "6336760"]
[WhiteElo "2132"]
[BlackElo "2382"]
[Result "1-0"]
[Round "02"]
[TimeControl "180+1"]
[Date "2022.03.22"]
[WhiteClock "0:00:05"]
[BlackClock "0:00:07"]

1. d4 {[%clk 0:03:00]}  g6 {[%clk 0:02:58]} 2. e4 {[%clk 0:02:59]}  Bg7 {[%clk 0:02:58]} 3. Nc3 {[%clk 0:02:59]}  d6 {[%clk 0:02:59]} 4. f4 {[%clk 0:02:55]}  a6 {[%clk 0:02:58]} 5. a4 {[%clk 0:02:52]}  Nf6 {[%clk 0:02:52]} 6. Nf3 {[%clk 0:02:51]}  O-O {[%clk 0:02:52]} 7. Be3 {[%clk 0:02:36]}  Nc6 {[%clk 0:02:18]} 8. e5 {[%clk 0:02:17]}  Ng4 {[%clk 0:02:09]} 9. Bg1 {[%clk 0:02:13]}  dxe5 {[%clk 0:02:07]} 10. dxe5 {[%clk 0:02:13]}  Bf5 {[%clk 0:01:58]} 11. h3 {[%clk 0:01:59]}  Qxd1+ {[%clk 0:01:58]} 12. Rxd1 {[%clk 0:01:46]}  Nh6 {[%clk 0:01:55]} 13. Rd2 {[%clk 0:01:44]}  Nb4 {[%clk 0:01:53]} 14. Nd4 {[%clk 0:01:42]}  Rfd8 {[%clk 0:01:37]} 15. g4 {[%clk 0:01:41]}  Bd7 {[%clk 0:01:29]} 16. Bg2 {[%clk 0:01:32]}  c5 {[%clk 0:01:14]} 17. Nb3 {[%clk 0:01:26]}  c4 {[%clk 0:01:09]} 18. Na5 {[%clk 0:01:22]}  Bc6 {[%clk 0:00:55]} 19. Nxc6 {[%clk 0:01:18]}  bxc6 {[%clk 0:00:52]} 20. Bc5 {[%clk 0:01:13]}  Rxd2 {[%clk 0:00:52]} 21. Kxd2 {[%clk 0:01:12]}  Rd8+ {[%clk 0:00:53]} 22. Kc1 {[%clk 0:01:12]}  Nd5 {[%clk 0:00:53]} 23. Rd1 {[%clk 0:01:04]}  e6 {[%clk 0:00:54]} 24. Bf1 {[%clk 0:00:59]}  Bf8 {[%clk 0:00:52]} 25. Bxf8 {[%clk 0:00:54]}  Rxf8 {[%clk 0:00:48]} 26. Rd4 {[%clk 0:00:54]}  c5 {[%clk 0:00:44]} 27. Re4 {[%clk 0:00:44]}  a5 {[%clk 0:00:27]} 28. Bxc4 {[%clk 0:00:41]}  Nxc3 {[%clk 0:00:27]} 29. bxc3 {[%clk 0:00:41]}  Rd8 {[%clk 0:00:25]} 30. Bb5 {[%clk 0:00:33]}  Kf8 {[%clk 0:00:24]} 31. Rc4 {[%clk 0:00:33]}  Rc8 {[%clk 0:00:25]} 32. Kd2 {[%clk 0:00:33]}  Ng8 {[%clk 0:00:24]} 33. Ke3 {[%clk 0:00:33]}  Ne7 {[%clk 0:00:24]} 34. Ke4 {[%clk 0:00:33]}  Nd5 {[%clk 0:00:24]} 35. Ba6 {[%clk 0:00:30]}  Rc7 {[%clk 0:00:22]} 36. f5 {[%clk 0:00:23]}  Nb6 {[%clk 0:00:21]} 37. fxe6 {[%clk 0:00:12]}  fxe6 {[%clk 0:00:22]} 38. Bb5 {[%clk 0:00:10]}  Ke7 {[%clk 0:00:18]} 39. Kd3 {[%clk 0:00:10]}  Nxc4 {[%clk 0:00:18]} 40. Kxc4 {[%clk 0:00:10]}  Rc8 {[%clk 0:00:17]} 41. Ba6 {[%clk 0:00:08]}  Rc7 {[%clk 0:00:17]} 42. Kb5 {[%clk 0:00:07]}  g5 {[%clk 0:00:16]} 43. Kxa5 {[%clk 0:00:06]}  c4 {[%clk 0:00:10]} 44. Kb6 {[%clk 0:00:06]}  Rd7 {[%clk 0:00:08]} 45. Bb5 {[%clk 0:00:06]}  Rd5 {[%clk 0:00:04]} 46. a5 {[%clk 0:00:06]}  Rxe5 {[%clk 0:00:04]} 47. a6 {[%clk 0:00:07]}  Rd5 {[%clk 0:00:02]} 48. a7 {[%clk 0:00:06]}  Rd8 {[%clk 0:00:02]} 49. Bc6 {[%clk 0:00:07]}  Kd6 {[%clk 0:00:02]} 50. a8=Q {[%clk 0:00:06]}  Rxa8 {[%clk 0:00:02]} 51. Bxa8 {[%clk 0:00:07]}  Ke5 {[%clk 0:00:03]} 52. Kc5 {[%clk 0:00:07]}  Kf4 {[%clk 0:00:03]} 53. Kxc4 {[%clk 0:00:07]}  Kg3 {[%clk 0:00:04]} 54. Be4 {[%clk 0:00:04]}  Kxh3 {[%clk 0:00:05]} 55. Kd4 {[%clk 0:00:04]}  Kxg4 {[%clk 0:00:06]} 56. Bxh7 {[%clk 0:00:04]}  Kf4 {[%clk 0:00:05]} 57. c4 {[%clk 0:00:05]}  e5+ {[%clk 0:00:06]} 58. Kd5 {[%clk 0:00:05]}  g4 {[%clk 0:00:07]} 59. Be4 {[%clk 0:00:05]}  g3 {[%clk 0:00:07]} 60. c5 {[%clk 0:00:05]} 1-0


[Site "https://www.chess.com"]

[Event "Titled Tuesday Blitz March 22 Late 2022"]
[White "Sztokbant, Bernardo Vainzoff"]
[Black "Mikhailovsky, Vladimir"]
[WhiteFideId "2115956"]
[BlackFideId "34105414"]
[WhiteElo "2237"]
[BlackElo "2371"]
[Result "0-1"]
[Round "02"]
[TimeControl "180+1"]
[Date "2022.03.22"]
[WhiteClock "0:00:05"]
[BlackClock "0:00:13"]

1. e4 {[%clk 0:03:00]}  c6 {[%clk 0:03:00]} 2. d4 {[%clk 0:03:00]}  d5 {[%clk 0:03:01]} 3. Nd2 {[%clk 0:02:59]}  dxe4 {[%clk 0:03:01]} 4. Nxe4 {[%clk 0:03:00]}  Nf6 {[%clk 0:03:02]} 5. Nxf6+ {[%clk 0:03:00]}  exf6 {[%clk 0:03:03]} 6. Nf3 {[%clk 0:03:01]}  Bd6 {[%clk 0:03:03]} 7. Be3 {[%clk 0:03:01]}  O-O {[%clk 0:03:04]} 8. Bd3 {[%clk 0:03:02]}  Re8 {[%clk 0:03:03]} 9. O-O {[%clk 0:02:59]}  Nd7 {[%clk 0:03:04]} 10. Re1 {[%clk 0:02:59]}  Nf8 {[%clk 0:03:04]} 11. Qd2 {[%clk 0:02:58]}  Ng6 {[%clk 0:03:03]} 12. c4 {[%clk 0:02:57]}  Bg4 {[%clk 0:03:03]} 13. Be2 {[%clk 0:02:55]}  f5 {[%clk 0:02:54]} 14. Qc2 {[%clk 0:02:37]}  Bxf3 {[%clk 0:02:30]} 15. Bxf3 {[%clk 0:02:36]}  Qh4 {[%clk 0:02:21]} 16. g3 {[%clk 0:02:25]}  Qh3 {[%clk 0:02:20]} 17. Bg2 {[%clk 0:02:25]}  Qh5 {[%clk 0:02:21]} 18. f4 {[%clk 0:02:19]}  Re7 {[%clk 0:02:18]} 19. Bf2 {[%clk 0:02:16]}  Rae8 {[%clk 0:02:18]} 20. Qd2 {[%clk 0:02:05]}  Nf8 {[%clk 0:01:20]} 21. Rxe7 {[%clk 0:01:57]}  Rxe7 {[%clk 0:01:20]} 22. Re1 {[%clk 0:01:57]}  Qg6 {[%clk 0:01:10]} 23. Rxe7 {[%clk 0:01:46]}  Bxe7 {[%clk 0:01:11]} 24. Qe2 {[%clk 0:01:39]}  Qd6 {[%clk 0:01:06]} 25. a3 {[%clk 0:01:35]}  Bf6 {[%clk 0:01:04]} 26. d5 {[%clk 0:01:31]}  c5 {[%clk 0:01:03]} 27. b4 {[%clk 0:01:17]}  b6 {[%clk 0:01:03]} 28. bxc5 {[%clk 0:01:06]}  bxc5 {[%clk 0:01:04]} 29. Qe8 {[%clk 0:01:06]}  g6 {[%clk 0:00:57]} 30. Qc8 {[%clk 0:01:05]}  Bd4 {[%clk 0:00:54]} 31. Bxd4 {[%clk 0:01:03]}  cxd4 {[%clk 0:00:55]} 32. c5 {[%clk 0:00:59]}  Qe7 {[%clk 0:00:56]} 33. Bf3 {[%clk 0:00:39]}  d3 {[%clk 0:00:47]} 34. d6 {[%clk 0:00:37]}  Qe3+ {[%clk 0:00:46]} 35. Kg2 {[%clk 0:00:37]}  d2 {[%clk 0:00:46]} 36. Qa8 {[%clk 0:00:31]}  Qd3 {[%clk 0:00:34]} 37. Bd1 {[%clk 0:00:16]}  Kg7 {[%clk 0:00:27]} 38. Qf3 {[%clk 0:00:15]}  Qc4 {[%clk 0:00:27]} 39. Qe3 {[%clk 0:00:14]}  Qd5+ {[%clk 0:00:23]} 40. Kf2 {[%clk 0:00:14]}  Ne6 {[%clk 0:00:22]} 41. Qe5+ {[%clk 0:00:10]}  Qxe5 {[%clk 0:00:22]} 42. fxe5 {[%clk 0:00:10]}  Nxc5 {[%clk 0:00:22]} 43. Ke3 {[%clk 0:00:10]}  f6 {[%clk 0:00:12]} 44. Kd4 {[%clk 0:00:10]}  Ne6+ {[%clk 0:00:13]} 45. Kd5 {[%clk 0:00:10]}  Kf7 {[%clk 0:00:14]} 46. exf6 {[%clk 0:00:04]}  Kxf6 {[%clk 0:00:15]} 47. Kc6 {[%clk 0:00:04]}  g5 {[%clk 0:00:14]} 48. d7 {[%clk 0:00:03]}  f4 {[%clk 0:00:14]} 49. gxf4 {[%clk 0:00:02]}  gxf4 {[%clk 0:00:15]} 50. Kd6 {[%clk 0:00:03]}  Kf5 {[%clk 0:00:14]} 51. Bc2+ {[%clk 0:00:01]}  Kf6 {[%clk 0:00:15]} 52. Bd1 {[%clk 0:00:02]}  h6 {[%clk 0:00:15]} 53. a4 {[%clk 0:00:02]}  a5 {[%clk 0:00:15]} 54. Be2 {[%clk 0:00:01]}  Nd8 {[%clk 0:00:13]} 55. Bd1 {[%clk 0:00:02]}  Nf7+ {[%clk 0:00:12]} 56. Kc7 {[%clk 0:00:02]}  Ke5 {[%clk 0:00:12]} 57. Bb3 {[%clk 0:00:01]}  Kf6 {[%clk 0:00:10]} 58. Bxf7 {[%clk 0:00:01]}  d1=Q {[%clk 0:00:10]} 59. d8=Q+ {[%clk 0:00:02]}  Qxd8+ {[%clk 0:00:10]} 60. Kxd8 {[%clk 0:00:03]}  Kxf7 {[%clk 0:00:11]} 61. Kc7 {[%clk 0:00:03]}  f3 {[%clk 0:00:12]} 62. Kb7 {[%clk 0:00:04]}  f2 {[%clk 0:00:13]} 63. Kb6 {[%clk 0:00:04]}  f1=Q {[%clk 0:00:13]} 64. Kxa5 {[%clk 0:00:05]} 0-1


[Site "https://www.chess.com"]

[Event "Titled Tuesday Blitz March 22 Late 2022"]
[White "Thomas, Anysia"]
[Black "Estrada Nieto, Julian"]
[WhiteFideId "670472"]
[BlackFideId "5101018"]
[WhiteElo "2002"]
[BlackElo "2246"]
[Result "0-1"]
[Round "02"]
[TimeControl "180+1"]
[Date "2022.03.22"]
[WhiteClock "0:00:05"]
[BlackClock "0:00:09"]

1. d4 {[%clk 0:02:58]}  d5 {[%clk 0:02:58]} 2. c4 {[%clk 0:02:56]}  dxc4 {[%clk 0:02:57]} 3. Nf3 {[%clk 0:02:49]}  Nf6 {[%clk 0:02:57]} 4. Nc3 {[%clk 0:02:50]}  a6 {[%clk 0:02:56]} 5. e4 {[%clk 0:02:45]}  b5 {[%clk 0:02:54]} 6. e5 {[%clk 0:02:46]}  Nd5 {[%clk 0:02:54]} 7. a4 {[%clk 0:02:46]}  e6 {[%clk 0:02:52]} 8. axb5 {[%clk 0:02:45]}  Nb6 {[%clk 0:02:53]} 9. Be3 {[%clk 0:02:37]}  Bb4 {[%clk 0:02:45]} 10. bxa6 {[%clk 0:02:36]}  Rxa6 {[%clk 0:02:44]} 11. Be2 {[%clk 0:02:34]}  Rxa1 {[%clk 0:02:42]} 12. Qxa1 {[%clk 0:02:34]}  O-O {[%clk 0:02:41]} 13. O-O {[%clk 0:02:34]}  Bb7 {[%clk 0:02:40]} 14. Rd1 {[%clk 0:02:34]}  N8d7 {[%clk 0:02:35]} 15. Qb1 {[%clk 0:02:21]}  h6 {[%clk 0:02:10]} 16. Qc1 {[%clk 0:02:12]}  Kh7 {[%clk 0:01:50]} 17. Qc2+ {[%clk 0:01:59]}  Kh8 {[%clk 0:01:43]} 18. Ne4 {[%clk 0:01:51]}  Qe7 {[%clk 0:01:38]} 19. Ned2 {[%clk 0:01:48]}  Bd5 {[%clk 0:01:28]} 20. Nxc4 {[%clk 0:01:34]}  Nxc4 {[%clk 0:01:28]} 21. Bxc4 {[%clk 0:01:34]}  Bxf3 {[%clk 0:01:27]} 22. gxf3 {[%clk 0:01:35]}  Nb6 {[%clk 0:01:17]} 23. Ba2 {[%clk 0:01:28]}  Nd5 {[%clk 0:01:14]} 24. Kh1 {[%clk 0:01:04]}  Ba5 {[%clk 0:01:07]} 25. Qc1 {[%clk 0:00:58]}  Qh4 {[%clk 0:01:01]} 26. Rg1 {[%clk 0:00:49]}  Bb6 {[%clk 0:00:54]} 27. Rg4 {[%clk 0:00:48]}  Qh3 {[%clk 0:00:53]} 28. Rg3 {[%clk 0:00:45]}  Qh5 {[%clk 0:00:49]} 29. Bc4 {[%clk 0:00:36]}  Ra8 {[%clk 0:00:47]} 30. Be2 {[%clk 0:00:32]}  Nxe3 {[%clk 0:00:35]} 31. fxe3 {[%clk 0:00:29]}  Qf5 {[%clk 0:00:33]} 32. Rg1 {[%clk 0:00:25]}  Qh3 {[%clk 0:00:26]} 33. Qe1 {[%clk 0:00:24]}  Ra2 {[%clk 0:00:23]} 34. Rg3 {[%clk 0:00:23]}  Qf5 {[%clk 0:00:22]} 35. Rg1 {[%clk 0:00:17]}  Rxb2 {[%clk 0:00:21]} 36. Qg3 {[%clk 0:00:16]}  g6 {[%clk 0:00:20]} 37. Bd1 {[%clk 0:00:12]}  Ba5 {[%clk 0:00:19]} 38. Qh4 {[%clk 0:00:12]}  Kg7 {[%clk 0:00:18]} 39. e4 {[%clk 0:00:09]}  g5 {[%clk 0:00:12]} 40. exf5 {[%clk 0:00:08]}  Bd2 {[%clk 0:00:10]} 41. f6+ {[%clk 0:00:07]}  Kh7 {[%clk 0:00:09]} 42. Qg3 {[%clk 0:00:06]}  Bf4 {[%clk 0:00:10]} 43. Qe1 {[%clk 0:00:05]}  Rxh2# {[%clk 0:00:09]} 0-1


[Site "https://www.chess.com"]

[Event "Titled Tuesday Blitz March 22 Late 2022"]
[White "Weber, Samuel"]
[Black "Indjic, Aleksandar"]
[WhiteFideId "12924008"]
[BlackFideId "911925"]
[WhiteElo "2215"]
[BlackElo "2616"]
[Result "0-1"]
[Round "02"]
[TimeControl "180+1"]
[Date "2022.03.22"]
[WhiteClock "0:01:12"]
[BlackClock "0:02:08"]

1. e4 {[%clk 0:02:57]}  c6 {[%clk 0:03:00]} 2. d4 {[%clk 0:02:51]}  d5 {[%clk 0:03:00]} 3. e5 {[%clk 0:02:52]}  c5 {[%clk 0:03:00]} 4. dxc5 {[%clk 0:02:52]}  e6 {[%clk 0:03:01]} 5. a3 {[%clk 0:02:46]}  Bxc5 {[%clk 0:03:00]} 6. b4 {[%clk 0:02:46]}  Be7 {[%clk 0:03:00]} 7. Bb2 {[%clk 0:02:45]}  a5 {[%clk 0:03:00]} 8. b5 {[%clk 0:02:42]}  Nd7 {[%clk 0:03:00]} 9. Nf3 {[%clk 0:02:41]}  f6 {[%clk 0:02:59]} 10. Bd3 {[%clk 0:02:31]}  Qc7 {[%clk 0:02:58]} 11. O-O {[%clk 0:02:06]}  fxe5 {[%clk 0:02:54]} 12. Nxe5 {[%clk 0:02:04]}  Nxe5 {[%clk 0:02:51]} 13. Qh5+ {[%clk 0:02:03]}  Nf7 {[%clk 0:02:48]} 14. Bxg7 {[%clk 0:02:04]}  Nf6 {[%clk 0:02:46]} 15. Qf3 {[%clk 0:01:57]}  Qe5 {[%clk 0:02:32]} 16. Nd2 {[%clk 0:01:52]}  Rg8 {[%clk 0:02:29]} 17. Rfe1 {[%clk 0:01:50]}  Qg5 {[%clk 0:02:29]} 18. Bxf6 {[%clk 0:01:43]}  Bxf6 {[%clk 0:02:29]} 19. Nb3 {[%clk 0:01:37]}  Bxa1 {[%clk 0:02:26]} 20. Nc5 {[%clk 0:01:29]}  Be5 {[%clk 0:02:24]} 21. b6 {[%clk 0:01:26]}  Ke7 {[%clk 0:02:22]} 22. Bxh7 {[%clk 0:01:23]}  Rg7 {[%clk 0:02:21]} 23. Bd3 {[%clk 0:01:22]}  Bd7 {[%clk 0:02:21]} 24. c4 {[%clk 0:01:22]}  Bc6 {[%clk 0:02:18]} 25. Qh3 {[%clk 0:01:18]}  Qf6 {[%clk 0:02:10]} 26. f4 {[%clk 0:01:15]}  Bd4+ {[%clk 0:02:10]} 27. Kh1 {[%clk 0:01:13]}  Bxc5 {[%clk 0:02:10]} 28. f5 {[%clk 0:01:12]}  e5 {[%clk 0:02:08]} 0-1


[Site "https://www.chess.com"]

[Event "Titled Tuesday Blitz March 22 Late 2022"]
[White "Zhou, Qiyu"]
[Black "Seo, Jung Min"]
[WhiteFideId "505161"]
[BlackFideId "1734687"]
[WhiteElo "1925"]
[BlackElo "2401"]
[Result "0-1"]
[Round "02"]
[TimeControl "180+1"]
[Date "2022.03.22"]
[WhiteClock "0:01:52"]
[BlackClock "0:02:26"]

1. e4 {[%clk 0:03:00]}  c6 {[%clk 0:02:59]} 2. d4 {[%clk 0:03:00]}  d5 {[%clk 0:02:59]} 3. e5 {[%clk 0:03:01]}  Bf5 {[%clk 0:02:59]} 4. Nf3 {[%clk 0:03:01]}  e6 {[%clk 0:02:59]} 5. Be2 {[%clk 0:02:56]}  Nd7 {[%clk 0:02:59]} 6. O-O {[%clk 0:02:55]}  Ne7 {[%clk 0:02:59]} 7. Nbd2 {[%clk 0:02:56]}  h6 {[%clk 0:02:58]} 8. a4 {[%clk 0:02:56]}  a5 {[%clk 0:02:57]} 9. Nb3 {[%clk 0:02:56]}  Bh7 {[%clk 0:02:56]} 10. Be3 {[%clk 0:02:46]}  Nf5 {[%clk 0:02:56]} 11. Qd2 {[%clk 0:02:45]}  Nxe3 {[%clk 0:02:55]} 12. fxe3 {[%clk 0:02:46]}  Be7 {[%clk 0:02:55]} 13. Bd3 {[%clk 0:02:46]}  Bxd3 {[%clk 0:02:55]} 14. Qxd3 {[%clk 0:02:46]}  O-O {[%clk 0:02:55]} 15. Nbd2 {[%clk 0:02:46]}  Qb6 {[%clk 0:02:52]} 16. e4 {[%clk 0:02:39]}  dxe4 {[%clk 0:02:47]} 17. Nxe4 {[%clk 0:02:40]}  c5 {[%clk 0:02:47]} 18. d5 {[%clk 0:02:34]}  c4+ {[%clk 0:02:47]} 19. Qd4 {[%clk 0:02:35]}  Qxd4+ {[%clk 0:02:44]} 20. Nxd4 {[%clk 0:02:36]}  exd5 {[%clk 0:02:44]} 21. Nf5 {[%clk 0:02:23]}  Rae8 {[%clk 0:02:40]} 22. Nc3 {[%clk 0:02:21]}  Bc5+ {[%clk 0:02:38]} 23. Kh1 {[%clk 0:02:21]}  Rxe5 {[%clk 0:02:36]} 24. Rad1 {[%clk 0:02:19]}  Nb6 {[%clk 0:02:36]} 25. b3 {[%clk 0:02:06]}  h5 {[%clk 0:02:30]} 26. Nb5 {[%clk 0:02:02]}  g6 {[%clk 0:02:27]} 27. Ng3 {[%clk 0:01:52]}  h4 {[%clk 0:02:26]} 0-1


[Site "https://www.chess.com"]